Cogmind - Beta 10.2 @@@ ROGUE MODE // 2021.05.13 @ 16:53:42 Player: John1001 Result: Destroyed by S-10 Pest with Light Assault Rifle Performance ------------- Evolutions (1) 500 Regions Visited (6) 1200 Robots Destroyed (23) 115 Value Destroyed (671) 671 Prototype IDs (2) 40 Alien Tech Used (0) 0 Bonus (54) 54 TOTAL SCORE: 2580 Bonus ------- Follower Combat Kills 54 Cogmind --------- Core Integrity 0/400 Matter 295/300 Energy 156/160 System Corruption 0% Temperature Cool (2) Movement Walking (130) Location -8/Mines Parts ------- > --- POWER (1) -------- Light Nuclear Core > --- PROPULSION (3) --- Titanium Leg > --- UTILITY (3) ------ Improved Signal Interpreter > --- WEAPON (2) ------- (None) > --- INVENTORY (4) ---- (None) Peak State ------------ > --- POWER ------------ Light Angular Momentum Engine > --- PROPULSION ------- Titanium Leg Titanium Leg Titanium Leg > --- UTILITY ---------- Small Storage Unit Improved Signal Interpreter Hacking Suite > --- WEAPON ----------- Beamcaster Heavy Assault Rifle > --- INVENTORY -------- Light Nuclear Core Titanium Leg Flight Unit Sensor Array Assault Rifle Datajack [Rating: 28] Favorites ----------- Power Light Angular Momentum Engine Engine Light Angular Momentum Engine Power Core Light Nuclear Core Propulsion Titanium Leg Leg Titanium Leg Utility Hacking Suite Device Sensor Array Storage Small Storage Unit Processor Improved Signal Interpreter Hackware Hacking Suite Weapon Beamcaster Energy Gun Beamcaster Ballistic Gun Heavy Assault Rifle Build | -11 -10 -10 -9 -9 -9 -8 ------- Run | Scr Mat Min Mat Min Exi Min Slots Evolved 2 | . . . 2 . . . Power . | . . . . . . . Propulsion 1 | . . . 1 . . . Utility 1 | . . . 1 . . . Weapon . | . . . . . . . Parts Attached 31 | 6 5 . 14 1 . 5 Power 5 | 1 . . 2 . . 2 Engine 3 | 1 . . 2 . . . Core 2 | . . . . . . 2 Reactor . | . . . . . . . Propulsion 13 | 2 2 . 7 . . 2 Treads . | . . . . . . . Leg 13 | 2 2 . 7 . . 2 Wheel . | . . . . . . . Hover . | . . . . . . . Flight . | . . . . . . . Utility 6 | 1 2 . 2 1 . . Device 1 | . . . . 1 . . Storage 1 | 1 . . . . . . Processor 3 | . 2 . 1 . . . Hackware 1 | . . . 1 . . . Protection . | . . . . . . . Artifact . | . . . . . . . Weapon 7 | 2 1 . 3 . . 1 Energy Gun 3 | 1 . . 1 . . 1 Energy Cannon . | . . . . . . . Ballistic Gun 4 | 1 1 . 2 . . . Ballistic Cannon . | . . . . . . . Launcher . | . . . . . . . Special Weapon . | . . . . . . . Impact Weapon . | . . . . . . . Slashing Weapon . | . . . . . . . Piercing Weapon . | . . . . . . . Special Melee Weapon . | . . . . . . . Unidentified Prototypes . | . . . . . . . Parts Lost 12 | . . . 2 . . 10 Power 1 | . . . . . . 1 Propulsion 5 | . . . 1 . . 4 Utility 2 | . . . . . . 2 Weapon 4 | . . . 1 . . 3 Highest Loss Streak 8 | . . . 1 . . 8 Average Slot Usage (%) 97 | . 97 100 98 100 100 89 Engine 10 | . 14 14 11 11 11 2 Core 1 | . . . . . . 8 Leg 31 | . 27 28 32 33 33 30 Device 5 | . . . . 11 11 9 Storage 5 | . 14 14 11 . . . Processor 11 | . 12 14 11 11 11 11 Hackware 8 | . . . 11 11 11 10 Energy Gun 6 | . . . 5 11 11 8 Ballistic Gun 15 | . 27 28 15 11 11 7 Naked Turns . | . . . . . . . Heaviest Build 21 | 10 10 10 21 21 18 18 Greatest Support 51 | 20 20 20 51 51 51 51 Greatest Overweight (x) 1 | 1 . . 1 . . . Average Overweight (x) . | . . . . . . . Largest Inventory Capacity 6 | 6 6 6 6 6 4 4 Average Capacity 4 | 5 6 6 6 4 4 4 Most Carried 6 | 2 6 6 6 6 4 4 Average Carried 4 | 1 5 6 5 4 4 3 Final Capacity 6 | 6 6 6 6 4 4 4 Final Carried 6 | 2 6 6 6 4 4 . Class Distribution -------------------- 66% | Scavenger-Mutant 33% | Mutant Dominant Class ---------------- Mutant | -10/Materials Mutant | -10/Mines Scavenger-Mutant | -9/Materials Scavenger-Mutant | -9/Mines Scavenger-Mutant | -9/Exiles Scavenger-Mutant | -8/Mines Resources | -11 -10 -10 -9 -9 -9 -8 ----------- Run | Scr Mat Min Mat Min Exi Min Matter Collected 782 | 201 227 . 274 . . 80 Remotely . | . . . . . . . Salvage Created 861 | . 313 . 405 . . 143 Parts 56 | . 22 . 29 . . 5 Haulers Intercepted 2 | . 1 . 1 . . . Recyclers Shooed . | . . . . . . . Parts Field Recycled . | . . . . . . . Retrieved Matter . | . . . . . . . Parts Self-Destructed . | . . . . . . . Prevented . | . . . . . . . Kills | -11 -10 -10 -9 -9 -9 -8 ------- Run | Scr Mat Min Mat Min Exi Min Combat Hostiles Destroyed 17 | . 6 . 8 . . 3 Guns 17 | . 6 . 8 . . 3 Classes Destroyed 9 | . 3 . 5 . . 1 Worker 1 | . . . 1 . . . Hauler 2 | . 1 . 1 . . . Operator 1 | . 1 . . . . . Watcher 2 | . . . 2 . . . Swarmer 2 | . . . 2 . . . Grunt 12 | . 6 . 4 . . 2 Brawler 1 | . . . 1 . . . Duelist 1 | . . . . . . 1 Sentry 1 | . . . 1 . . . Best Kill Streak 6 | . 3 . 6 . . 3 Combat Bots Only 4 | . 2 . 4 . . 3 Max Kills in Single Turn 1 | . 1 . 1 . . 1 Gunslinging . | . . . . . . . Exploded . | . . . . . . . Melee . | . . . . . . . Uniques/NPCs Destroyed . | . . . . . . . Combat | -11 -10 -10 -9 -9 -9 -8 -------- Run | Scr Mat Min Mat Min Exi Min Damage Taken 2154 | . 287 10 572 . . 1285 Core 452 | . 39 10 80 . . 323 Absorbed by Shields . | . . . . . . . Core Remaining (%) 90 | 100 . 80 . . . . Volleys Fired 80 | . 32 . 34 . . 14 Largest 2 | . 2 . 2 . . 2 Hottest 98 | . 40 . 98 . . 98 Shots Fired 158 | . 64 . 68 . . 26 Gun 158 | . 64 . 68 . . 26 Cannon . | . . . . . . . Launcher . | . . . . . . . Special . | . . . . . . . Kinetic 136 | . 64 . 60 . . 12 Thermal 22 | . . . 8 . . 14 Explosive . | . . . . . . . Electromagnetic . | . . . . . . . Robot Hit Streak 7 | . 5 . 7 . . 5 Robot Miss Streak 3 | . 3 . 2 . . 1 Penetration Max . | . . . . . . . Secondary Targets 4 | . 1 . 1 . . 2 Max Gunslinging Chain 1 | . 1 . 1 . . 1 Shots Hit Robots 93 | . 38 . 43 . . 12 Core Hits 46 | . 20 . 19 . . 7 Critical Hits 2 | . 1 . 1 . . . Critical Kills . | . . . . . . . Critical Parts Destroyed 2 | . 1 . 1 . . . Melee Attacks . | . . . . . . . Impact . | . . . . . . . Slashing . | . . . . . . . Piercing . | . . . . . . . Sneak Attacks . | . . . . . . . Combat Hostiles . | . . . . . . . Follow-up Attacks . | . . . . . . . Damage Inflicted 1315 | . 456 . 626 . . 233 Guns 1315 | . 456 . 626 . . 233 Cannons . | . . . . . . . Explosions . | . . . . . . . Melee . | . . . . . . . Ramming . | . . . . . . . Kinetic 999 | . 456 . 479 . . 64 Thermal 316 | . . . 147 . . 169 Explosive . | . . . . . . . Electromagnetic . | . . . . . . . Impact . | . . . . . . . Slashing . | . . . . . . . Piercing . | . . . . . . . Highest Corruption . | . . . . . . . Average Corruption . | . . . . . . . Corruption Purged . | . . . . . . . Overload Shots . | . . . . . . . Overflow Damage . | . . . . . . . Projectiles . | . . . . . . . Explosions . | . . . . . . . Melee . | . . . . . . . Knockbacks . | . . . . . . . Impact . | . . . . . . . Kinetic . | . . . . . . . Secondary . | . . . . . . . Self-Inflicted Damage . | . . . . . . . Shots . | . . . . . . . Rammed . | . . . . . . . Targets Rammed . | . . . . . . . Kicked . | . . . . . . . Crushed . | . . . . . . . Highest Temperature 314 | . 30 . 105 . . 314 Average Temperature 101 | . 11 . 42 . . 154 Received Heat Transfer 780 | . 159 . 126 . . 495 Effects 1 | . . . . . . 1 Energy Bleed 1 | . . . . . . 1 Siege Activations . | . . . . . . . Robots Corrupted . | . . . . . . . Combat Hostiles . | . . . . . . . Parts Fried . | . . . . . . . Impact Corruptions . | . . . . . . . Robots Melted . | . . . . . . . Combat Hostiles . | . . . . . . . Parts Melted . | . . . . . . . Heat Transferred 555 | . . . 259 . . 296 Parts Sabotaged . | . . . . . . . Parts Stolen . | . . . . . . . Parts Stripped . | . . . . . . . Power Chain Reactions . | . . . . . . . Missiles Intercepted . | . . . . . . . Alert | -11 -10 -10 -9 -9 -9 -8 ------- Run | Scr Mat Min Mat Min Exi Min Peak Influence 318 | . 205 79 318 84 . 70 Initial 84 | . . 79 7 84 . . Average 100 | . 99 59 182 84 . 52 Maximum Alert Level 1 | . 1 . 1 . . . Low Security (%) 83 | 100 85 100 48 100 . 100 Level 1 16 | . 14 . 51 . . . Level 2 . | . . . . . . . Level 3 . | . . . . . . . Level 4 . | . . . . . . . Level 5 . | . . . . . . . High Security . | . . . . . . . Max Security . | . . . . . . . Squads Dispatched 4 | . 1 . 3 . . . Investigation 1 | . . . 1 . . . Extermination . | . . . . . . . Reinforcement 3 | . 1 . 2 . . . Assault . | . . . . . . . Garrison . | . . . . . . . Intercept . | . . . . . . . Construction Impeded . | . . . . . . . Haulers Reinforced . | . . . . . . . Stealth | -11 -10 -10 -9 -9 -9 -8 --------- Run | Scr Mat Min Mat Min Exi Min Distress Signals 1 | . 1 . . . . . Communications Jammed . | . . . . . . . Distress Signals . | . . . . . . . Times Spotted 63 | . 10 12 26 . . 15 Peak Tracking Total 14 | . 3 14 8 . . 8 Tactical Retreats 4 | . . 1 . . . 3 Traps | -11 -10 -10 -9 -9 -9 -8 ------- Run | Scr Mat Min Mat Min Exi Min Traps Triggered 1 | . . . 1 . . . Indirectly . | . . . . . . . Trap Hack Attempts . | . . . . . . . Triggered . | . . . . . . . Disarmed . | . . . . . . . Reprogrammed . | . . . . . . . Reused . | . . . . . . . Traps Extracted . | . . . . . . . Installed . | . . . . . . . Triggered . | . . . . . . . Machines | -11 -10 -10 -9 -9 -9 -8 ---------- Run | Scr Mat Min Mat Min Exi Min Machines Disabled 1 | . . . 1 . . . Max in Single Turn 1 | . . . 1 . . . Machines Sabotaged . | . . . . . . . Garrisons Compromised . | . . . . . . . Overloaded Fab Kills . | . . . . . . . Fab Network Shutdowns . | . . . . . . . Hacking | -11 -10 -10 -9 -9 -9 -8 --------- Run | Scr Mat Min Mat Min Exi Min Machines Accessed 8 | . 2 . 2 . 4 . Terminals 4 | . 2 . 2 . . . Fabricators . | . . . . . . . Repair Stations . | . . . . . . . Recycling Units . | . . . . . . . Scanalyzers . | . . . . . . . Garrison Access . | . . . . . . . Total Hacks 19 | . 7 . 8 . 4 . Successful 16 | . 6 . 6 . 4 . Failed 3 | . 1 . 2 . . . Catastrophic . | . . . . . . . Database Lockouts . | . . . . . . . Manual 9 | . 2 . 5 . 2 . Terminals 15 | . 7 . 8 . . . Fabricators . | . . . . . . . Repair Stations . | . . . . . . . Recycling Units . | . . . . . . . Scanalyzers . | . . . . . . . Garrison Access . | . . . . . . . Terminal Hacks 16 | . 6 . 6 . 4 . Record 4 | . . . . . 4 . Prototype ID Bank 1 | . 1 . . . . . Branch Access Points 2 | . 1 . 1 . . . Terminal Index 1 | . . . 1 . . . Alert Level 1 | . . . 1 . . . Locate Traps 2 | . 1 . 1 . . . Dispatch Records 1 | . 1 . . . . . Hauler Manifests 1 | . 1 . . . . . Zone Layout 3 | . 1 . 2 . . . Fabricator Hacks . | . . . . . . . Repair Station Hacks . | . . . . . . . Recycling Unit Hacks . | . . . . . . . Scanalyzer . | . . . . . . . Garrison Access Hacks . | . . . . . . . Unauthorized Hacks . | . . . . . . . Terminals . | . . . . . . . Fabricators . | . . . . . . . Repair Stations . | . . . . . . . Recycling Units . | . . . . . . . Scanalyzers . | . . . . . . . Garrison Access . | . . . . . . . Data Cores Recovered . | . . . . . . . Used . | . . . . . . . Hacking Detections 2 | . 1 . 1 . . . Full Trace Events . | . . . . . . . Feedback Events . | . . . . . . . Feedback Blocked . | . . . . . . . Robot Schematics Acquired . | . . . . . . . Robots Built . | . . . . . . . Matter . | . . . . . . . Time . | . . . . . . . Total Robot Build Rating . | . . . . . . . Part Schematics Acquired . | . . . . . . . Parts Built . | . . . . . . . Matter . | . . . . . . . Time . | . . . . . . . Total Part Build Rating . | . . . . . . . Parts Repaired . | . . . . . . . Time . | . . . . . . . Parts Recycled . | . . . . . . . Recycled Matter . | . . . . . . . Retrieved Matter . | . . . . . . . Retrieved Components . | . . . . . . . Parts Scanalyzed . | . . . . . . . Part Schematics Acquired . | . . . . . . . Parts Damaged . | . . . . . . . Bothacking | -11 -10 -10 -9 -9 -9 -8 ------------ Run | Scr Mat Min Mat Min Exi Min Used RIF Installer . | . . . . . . . Robots Hacked . | . . . . . . . Non-combat . | . . . . . . . Combat . | . . . . . . . Robot Hacks Applied . | . . . . . . . Relay Couplers Released . | . . . . . . . Robots Rewired . | . . . . . . . Allies Hacked . | . . . . . . . Hacks Repelled . | . . . . . . . Allies | -11 -10 -10 -9 -9 -9 -8 -------- Run | Scr Mat Min Mat Min Exi Min Total Allies 5 | . . 5 . . . . Largest Group 3 | . . 3 1 . . . Highest-Rated Group 42 | . . 42 31 . . . Highest-Rated Ally 31 | . . 31 31 . . . Total Orders . | . . . . . . . Ally Attacks 35 | . . 11 24 . . . Total Damage 453 | . . 71 382 . . . Kills 7 | . . 1 6 . . . Allies Corrupted . | . . . . . . . Allies Melted . | . . . . . . . Intel | -11 -10 -10 -9 -9 -9 -8 ------- Run | Scr Mat Min Mat Min Exi Min Robot Analysis Total . | . . . . . . . Derelict Logs Recovered . | . . . . . . . Drone Launches . | . . . . . . . Drone Recoveries . | . . . . . . . Exploration | -11 -10 -10 -9 -9 -9 -8 ------------- Run | Scr Mat Min Mat Min Exi Min Turns Passed 2419 | 61 313 310 475 190 710 360 Spaces Moved 1683 | 47 163 258 282 144 547 242 Core 11 | 11 . . . . . . Treads . | . . . . . . . Legs 1672 | 36 163 258 282 144 547 242 Wheels . | . . . . . . . Hover . | . . . . . . . Flight . | . . . . . . . Fastest Speed 50 | 50 120 120 120 130 130 120 Average Speed 125 | 108 120 120 120 130 130 129 Slowest Speed 160 | 120 120 120 160 130 130 130 Overloaded Moves . | . . . . . . . Propulsion Burnouts . | . . . . . . . Robots Hopped . | . . . . . . . Cave-ins Triggered . | . . . . . . . Exploration Rate (%) 43 | 5 41 52 32 39 92 46 Regions Visited 6 Branch Regions 4 Pre-discovered Areas . | . . . . . . . Known Exits Taken 5 | . 1 1 1 1 1 . Unknown Exits Taken 1 | 1 . . . . . . Scrap Searched . | . . . . . . . Spaces Dug . | . . . . . . . Terrain Destroyed . | . . . . . . . Melee . | . . . . . . . Projectile . | . . . . . . . AOE . | . . . . . . . Terrain Rammed . | . . . . . . . Walls Destroyed . | . . . . . . . Machines Disabled . | . . . . . . . Actions | -11 -10 -10 -9 -9 -9 -8 --------- Run | Scr Mat Min Mat Min Exi Min Total 1845 | 54 225 258 351 147 546 264 Wait 12 | . 9 1 2 . . . Move 1677 | 46 162 257 281 143 546 242 Hop . | . . . . . . . Pick Up 18 | 2 8 . 6 1 . 1 Fast Attach 22 | 6 5 . 10 . . 1 Attach 8 | . . . 4 . . 4 Detach 5 | . 2 . 3 . . . Swap 1 | . . . . 1 . . Drop 22 | . 7 . 11 2 . 2 Fire 80 | . 32 . 34 . . 14 Melee . | . . . . . . . Ram . | . . . . . . . Kick . | . . . . . . . Crush . | . . . . . . . Escape Stasis . | . . . . . . . Rewire . | . . . . . . . Trap . | . . . . . . . Miscellaneous . | . . . . . . . Route ------- -11/Scrapyard -10/Materials (discovered 3 exits: *Mat / *Min x2) -10/Mines -9/Materials (discovered 2 exits: *Min x2) -9/Mines (discovered 2 exits: *Mat / *Exi) -9/Exiles (discovered 2 exits: *Min x2) -8/Mines History --------- Turn | Location | Event 13 | -11/Scrapyard | Discovered new exit (range 15) 62 | -11/Scrapyard | Entered Materials 200 | -10/Materials | Identified exit to Mines 209 | -10/Materials | Discovered new exit (range 13) 315 | -10/Materials | Build established: Mutant 375 | -10/Materials | Entered Mines 482 | -10/Mines | Assisted by bots powering up and referring to "LRC-V3" 559 | -10/Mines | Assembled infested the area 638 | -10/Mines | Discovered new exit (range 7) 644 | -10/Mines | Identified exit to Materials 685 | -10/Mines | Entered Materials 685 | -9/Materials | Accompanied by 1 ally 685 | -9/Materials | Evolved 2 slots: Propulsion x1, Utility x1 690 | -9/Materials | Led the pair of lost Derelicts to an unsafe place 948 | -9/Materials | Identified exit to Mines 1042 | -9/Materials | Build established: Scavenger-Mutant 1160 | -9/Materials | Entered Mines 1333 | -9/Mines | Discovered new exit (range 13) 1334 | -9/Mines | Discovered new exit (range 13) 1345 | -9/Mines | Identified exit to Materials 1349 | -9/Mines | Identified exit to Exiles 1350 | -9/Mines | Entered Exiles 1350 | -9/Exiles | Found Exiles lab abandoned 1371 | -9/Exiles | Discovered new exit (range 15) 1886 | -9/Exiles | Discovered new exit (range 10) 1895 | -9/Exiles | Identified exit to Mines 2060 | -9/Exiles | Entered Mines 2377 | -8/Mines | Core integrity fell below 50% 2396 | -8/Mines | Core integrity fell below 20% 2420 | -8/Mines | Destroyed by S-10 Pest with Light Assault Rifle Last Messages --------------- 02133_ Acquired Lgt. Nuclear Core. 02135_ Acquired 10 matter. 02138_ Dropped Datajack. 02139_ Acquired Particle Gun. 02257_ K-01 Serf collects debris. 02298_ C-30 ARC bursts open, deploying its payload. 02298_ G-50 Soldier unfolds itself. 02298_ G-47 Trooper unfolds itself. 02302_ K-01 Serf destroyed. 02309_ Beamcaster destroyed. 02312_ Hvy. Assault Rifle destroyed. 02337_ K-01 Serf collects debris. 02363_ Titanium Leg destroyed. 02369_ Particle Gun destroyed. 02374_ Sensor Array destroyed. 02375_ Titanium Leg destroyed. 02388_ Lgt. Nuclear Core destroyed. 02413_ Carbon-fiber Leg destroyed. 02414_ Hacking Suite destroyed. 02415_ S-10 Pest destroyed. Map ----- +----------------------------------------------------+ | ??????????????????????????????????# """ # | | ???????????????????????????????????# #? | | ???????????????????????????????????### ######? | | ?????????????????????????????????????## ##?????# | | ?????????????????????????????????????## ######## | | ???????????????????????????????####### ## | | ???????????????????????????????# | | ??????????????###??????????????# ## | | ?????????????## #?????####????# ##### #### | | ????????????## ###### ##???# #???# ######??### | | ????????????# ## ##??# #???# #?????????? | | ????????????# #### #??? #?????????? | | ?????????????# #?? ###?????????? | | ?????????????## #### ### #?# ????????????? | | ??????????????## ##??# ##?# #?#?????????????? | | ???????????????# #???#gs###??# ### ####???????## | | ???????????????## ##???#s #????# #?????# | | ????????????????##?????# #????# ########???????# | | ???????????????????????# #???## ##????????????# | | ???????????????????????# #???# ##?????####### | | ???????????????????????# #???# ##??# | | ???????????????????????# #???## #????######## | | ???????????????????????#t #????## #???????????? | | ???????????????????????# #????## #???????????? | | ???????????????????????# #???## #???????????? | | ???????????????????????# @#???# ##???????????? | | ???????????????????????#s #???# ######????????? | | ???????????????????????#%[#??## #????????# | | ??????????????????????? % #??# ####????## | | ??????????????????????## #??# #### #????# | | ???????????????????????# #??## ##??# #????# | | ???????????????????????# #???####???##### #???## | | ??????????????????????? s ?????????###### ###?# | | ??????????????????????? ?????????# #?# | | ??????????????????????? % ?????????# """ #?## | | ??????????????????????? ?????????# """ #??## | | ??????????????????????# ##?????????# """ #???? | | ?????????????????????? ##???????????# #???? | | ?????????????????????? ?????????????# #???? | | ?????????????????????? ?????????????# #???? | | ????????????????????????????????????##########???? | | ?????????????????????????????????????????????????? | | ?????????????????????????????????????????????????? | | ?????????????????????????????????????????????????? | | ?????????????????????????????????????????????????? | | ?????????????????????????????????????????????????? | | ?????????????????????????????????????????????????? | | ?????????????????????????????????????????????????? | | ?????????????????????????????????????????????????? | | ?????????????????????????????????????????????????? | +----------------------------------------------------+ Best States ------------- Heat Dissipation 28 Energy Generation 18 Energy Capacity 160 Matter Stores 300 Matter Capacity 300 Sight Range 16 Robot Scan Range 10 Terrain Scan Density 10 Evasion (%) 40 Targeting Accuracy 5 Offensive Hacking 10 Item Schematics ----------------- None Robot Schematics ------------------ None Fabricated ------------ Nothing Alien Tech Used ----------------- None Achievements -------------- None Challenges ------------ None Game ------ Seed DefenseCatalystDetonator Manual? 0 Play Time 00:32:29 Cumulative 39.2 hours Start 2021.05.13 @ 16:20:47 End 2021.05.13 @ 16:53:42 Sessions 1 Manual Loads 0 Difficulty Rogue Special Mode None Game No. 16 Rogue 13 Adventurer 0 Explorer 3 Win Type - Total 0 Types 0/0/0/0/0/0/0/0/0 Lore% 44 Gallery% 34 Achievement% 34 Wizard Run 0 Options --------- ASCII 0 Keyboard 1 Movement Numpad Keybinds 0 Fullscreen 1 Font 18/Terminus Map View 76x50 Tactical HUD 1 Map Filters NONE Filters NONE Steam 1 RUN: 4fc61079-87c9-4da4-b520-fe088a62d7a1